fUST/lending_fUST_20250507
["ID","MTS","AMOUNT","RATE_DAILY","PERIOD"]
[360145813,1746573040692,-11080.1563458,0.00018479,2]
[360145815,1746573040704,-6388.12986584,0.00018479,2]
[360146159,1746573043778,-423.13826998,0.00018479,2]
[360146161,1746573043789,-43234.90460653,0.00018479,2]
[360146163,1746573043801,-55582.08548658,0.00018479,2]
[360146544,1746573047546,-53833.50897427,0.00018479,2]
[360147108,1746574066354,-202.21563338,0.00016642,2]
[360147109,1746574066378,-300.0,0.00016741,2]
[360147110,1746574066400,-500.0,0.00016742,2]
[360147111,1746574066435,-500.0,0.00016742,2]
[360147112,1746574066457,-302.67961947,0.00016742,2]
[360147113,1746574066492,-500.0,0.00016742,2]
[360147114,1746574066526,-500.0,0.00016742,2]
[360147115,1746574066562,-500.0,0.00016742,2]
[360147116,1746574066597,-472.5055208,0.00016742,2]
[360147117,1746574066621,-500.0,0.00016742,2]
[360147118,1746574066644,-500.0,0.00016742,2]
[360147119,1746574066666,-500.0,0.00016742,2]
[360147120,1746574066700,-500.0,0.00016742,2]
[360147121,1746574066723,-500.0,0.00016742,2]
[360147122,1746574066743,-3722.59922635,0.00016749,2]
[360147127,1746574156425,-201.94896919,0.00016748,2]
[360147128,1746574156447,-610.64169912,0.00016748,2]
[360147129,1746574156468,-500.0,0.00016748,2]
[360147130,1746574156493,-500.0,0.00016748,2]
[360147131,1746574156516,-500.0,0.00016748,2]
[360147132,1746574156553,-274.72283565,0.00016748,2]
[360147133,1746574156575,-500.0,0.00016748,2]
[360147134,1746574156597,-458.34499942,0.00016748,2]
[360147135,1746574156619,-500.0,0.00016748,2]
[360147136,1746574156642,-500.0,0.00016748,2]
[360147137,1746574156665,-300.0,0.00016748,2]
[360147138,1746574156686,-1154.34149662,0.00016749,2]
[360147157,1746574232723,-456.0,0.00014,2]
[360147159,1746574232732,-123.05927703,0.00016749,2]
[360147160,1746574232741,-300.0,0.00017179,2]
[360147161,1746574232750,-289.63562523,0.00017179,2]
[360147163,1746574232759,-24625.81768727,0.0001718,2]
[360147165,1746574232770,-274.18231273,0.0001718,2]
[360147166,1746574232780,-5000.0,0.00017749,2]
[360147168,1746574232789,-500.0,0.00018082,2]
[360147169,1746574232798,-1000.0,0.00018219,2]
[360147171,1746574232807,-355.36559014,0.00018279,2]
[360147173,1746574232816,-1455.73585494,0.00018299,2]
[360147175,1746574232825,-5000.0,0.000183,2]
[360147177,1746574232834,-500.0,0.0001832,2]
[360147180,1746574232843,-500.0,0.0001835,2]
[360147183,1746574232852,-6152.82506236,0.00018355,2]
[360147186,1746574232861,-1500.0,0.00018356,2]
[360147189,1746574232870,-279.95,0.00018369,3]
[360147192,1746574232882,-839.9,0.00018369,3]
[360147195,1746574232891,-457.80598948,0.00018373,2]
[360147198,1746574232900,-500.0,0.00018373,2]
[360147200,1746574232910,-500.0,0.00018373,2]
[360147202,1746574232919,-500.0,0.00018373,2]
[360147203,1746574232929,-500.0,0.00018373,2]
[360147204,1746574232939,-500.0,0.00018373,2]
[360147205,1746574232948,-500.0,0.00018373,2]
[360147206,1746574232957,-165116.92082445,0.00018379,2]
[360147215,1746574238840,-1174.95282108,0.00018379,2]
[360147891,1746574247195,-281.559679,0.00017583,2]
[360147893,1746574247206,-733.31719254,0.00018379,2]
[360148177,1746575006630,400.0,0.00023,120]
[360148237,1746575431952,-456.0,0.00014,2]
[360148239,1746575431962,-250.0,0.00015373,2]
[360148241,1746575431972,-226.851558,0.00017254,2]
[360148243,1746575431982,-500.0,0.00018082,2]
[360148245,1746575431991,-153.33469079,0.000181,2]
[360148247,1746575432001,-1164.58868392,0.000182,2]
[360148250,1746575432011,-200.0,0.00018218,2]
[360148252,1746575432021,-1000.0,0.00018219,2]
[360148254,1746575432031,-22005.31762057,0.0001826,2]
[360148256,1746575432047,-463.5930767,0.0001826,2]
[360148380,1746575440487,-1056.20556976,0.0001826,2]
[360149365,1746576632257,-350.90513,0.00016644,2]
[360149367,1746576632268,-226.851558,0.00016691,2]
[360149369,1746576632278,-478.298,0.00017183,2]
[360149371,1746576632288,-242.32035847,0.00017266,2]
[360149373,1746576632297,-500.0,0.00017266,2]
[360149375,1746576632307,-253.47794604,0.00017266,2]
[360149377,1746576632317,-300.0,0.00017273,2]
[360149379,1746576632328,-1200.0,0.00017273,2]
[360149381,1746576632338,-352.74493766,0.00017273,2]
[360149383,1746576632349,-13864.8240555,0.00017274,2]
[360149384,1746576632361,-2887.9820759,0.00017284,2]
[360149385,1746576632371,-468.57,0.00017284,2]
[360149386,1746576632380,-500.0,0.00017671,2]
[360149387,1746576632391,-1000.0,0.00017808,2]
[360149389,1746576632401,-1500.0,0.00017945,2]
[360149391,1746576632411,-500.0,0.00018,2]
[360149393,1746576632420,-2000.0,0.00018082,2]
[360149395,1746576632431,-907.12212918,0.00018119,2]
[360149397,1746576632441,-1638.49826934,0.00018119,2]
[360149398,1746576632451,-559.9,0.00018169,3]
[360149400,1746576632461,-241760.86621779,0.00018179,2]
[360149403,1746576632485,-11153.51307076,0.00018179,2]
[360149405,1746576632497,-1452.34553956,0.00018179,2]
[360149479,1746576638475,-9678.2,0.00018179,2]
[360149881,1746576643453,-35674.23805997,0.00018179,2]
[360149883,1746576643464,-8776.65031197,0.00018179,2]
[360150182,1746576646411,-482.40307759,0.00018179,2]
[360151513,1746577109536,5000.0,0.00022,30]
[360151612,1746577832154,-500.0,0.00015999,2]
[360151613,1746577832164,-244.23578696,0.00015999,2]
[360151614,1746577832174,-5000.0,0.00016,2]
[360151615,1746577832183,-1200.0,0.00016899,2]
[360151616,1746577832193,-1560.65093741,0.000169,2]
[360151617,1746577832203,-300.0,0.00016997,2]
[360151619,1746577832214,-246.92145636,0.00016998,2]
[360151620,1746577832223,-5000.0,0.00016999,2]
[360151622,1746577832233,-1985.5387592,0.00017313,2]
[360151625,1746577832243,-1560.65093723,0.00017452,2]
[360151627,1746577832253,-500.0,0.00017671,2]
[360151628,1746577832262,-1000.0,0.00017808,2]
[360151631,1746577832272,-1500.0,0.00017945,2]
[360151633,1746577832283,-793.73186298,0.00017973,2]
[360151635,1746577832292,-2596.36272667,0.00017982,2]
[360151640,1746577832308,-370.5427864,0.00017982,2]
[360151643,1746577832317,-1560.65093723,0.00018003,2]
[360151646,1746577832327,-23174.54885481,0.00018071,2]
[360153039,1746579032421,-173.56743042,0.00014749,2]
[360153041,1746579032432,-166.1123423,0.00016577,2]
[360153043,1746579032443,-172.84501946,0.00016605,2]
[360153045,1746579032452,-300.0,0.00016605,2]
[360153047,1746579032462,-1200.0,0.00016605,2]
[360153049,1746579032471,-17129.5532895,0.00016606,2]
[360154579,1746579467480,508.0,0.00010305,2]
[360154627,1746580187565,304.85,0.00010305,2]
[360154654,1746580232503,-271.20397497,0.00015599,2]
[360154656,1746580232517,-200.0,0.00015599,2]
[360154658,1746580232529,-300.0,0.00015599,2]
[360154661,1746580232542,-349.0,0.00015599,2]
[360154663,1746580232555,-3040.79408747,0.000156,2]
[360154668,1746580232593,-5734.53235171,0.000156,2]
[360154672,1746580232620,-1500.0,0.000156,2]
[360154675,1746580232636,-15229.67356082,0.000156,2]
[360154677,1746580232649,-179.55941,0.00015645,2]
[360154680,1746580232662,-643.7866067,0.00015716,2]
[360154682,1746580232674,-500.0,0.00016438,2]
[360154684,1746580232687,-155.0,0.00016459,2]
[360154687,1746580232699,-360.0,0.00016606,2]
[360154689,1746580232711,-301.73229099,0.00016606,2]
[360154691,1746580232723,-360.0,0.00016606,2]
[360154694,1746580232736,-360.0,0.00016606,2]
[360154696,1746580232748,-360.0,0.00016606,2]
[360154698,1746580232760,-151.0,0.00016606,2]
[360154701,1746580232773,-273.47914036,0.00016606,2]
[360154703,1746580232786,-166.0,0.00016606,2]
[360154705,1746580232798,-170.0,0.00016606,2]
[360154708,1746580232811,-151.0,0.00016606,2]
[360154710,1746580232822,-170.0,0.00016606,2]
[360154712,1746580232834,-166.0,0.00016606,2]
[360154715,1746580232846,-300.29969645,0.00016606,2]
[360154717,1746580232858,-166.0,0.00016606,2]
[360154719,1746580232871,-166.0,0.00016606,2]
[360154721,1746580232884,-202.52196649,0.00016606,2]
[360154724,1746580232896,-320.0,0.00016606,2]
[360154726,1746580232908,-320.0,0.00016606,2]
[360154728,1746580232921,-320.0,0.00016606,2]
[360154731,1746580232933,-320.0,0.00016606,2]
[360154733,1746580232945,-320.0,0.00016606,2]
[360154735,1746580232957,-320.0,0.00016606,2]
[360154738,1746580232971,-320.0,0.00016606,2]
[360154740,1746580232984,-320.0,0.00016606,2]
[360154742,1746580232997,-320.0,0.00016606,2]
[360154745,1746580233010,-320.0,0.00016606,2]
[360154747,1746580233023,-320.0,0.00016606,2]
[360154749,1746580233036,-320.0,0.00016606,2]
[360154752,1746580233049,-344.79732507,0.00016606,2]
[360154754,1746580233062,-360.0,0.00016606,2]
[360154757,1746580233075,-360.0,0.00016606,2]
[360154759,1746580233087,-360.0,0.00016606,2]
[360154761,1746580233101,-320.0,0.00016606,2]
[360154764,1746580233113,-360.0,0.00016606,2]
[360154766,1746580233122,-360.0,0.00016606,2]
[360154768,1746580233132,-360.0,0.00016606,2]
[360154780,1746580233380,-360.0,0.00016606,2]
[360154782,1746580233391,-360.0,0.00016606,2]
[360154784,1746580233401,-360.0,0.00016606,2]
[360154786,1746580233410,-214.57187341,0.00016606,2]
[360154788,1746580233419,-360.0,0.00016606,2]
[360154790,1746580233429,-320.0,0.00016606,2]
[360154792,1746580233438,-320.0,0.00016606,2]
[360154794,1746580233447,-17269.27807978,0.00016824,2]
[360154796,1746580233463,-888.96740759,0.00016824,2]
[360156740,1746581432446,-301.83524633,0.00015175,2]
[360156801,1746581438054,-2980.46702185,0.00015175,2]
[360157393,1746581445927,-361.80647962,0.00015175,2]
[360157395,1746581445938,-219.36170205,0.00015899,2]
[360158490,1746581895892,3105.0,0.00022,30]
[360158500,1746582124282,3779.85352285,0.0001,2]
[360158501,1746582146720,4442.9,0.00022,30]
[360158503,1746582242123,312.469887,0.00022,30]
[360158557,1746582631901,-251.65667497,0.00014671,2]
[360158559,1746582631911,-189.6099003,0.00014977,2]
[360158561,1746582631921,-229.9527255,0.00014999,2]
[360158563,1746582631930,-500.0,0.00015895,2]
[360158565,1746582631939,-544.40383076,0.00015895,2]
[360158567,1746582631949,-14345.28577848,0.000159,2]
[360161241,1746583832154,-290.7371516,0.00015531,2]
[360161243,1746583832164,-1991.4394312,0.00015532,2]
[360161245,1746583832173,-267.45075462,0.00015788,2]
[360161247,1746583832183,-300.0,0.00015788,2]
[360161249,1746583832192,-300.0,0.00015788,2]
[360161251,1746583832202,-300.0,0.00015788,2]
[360161253,1746583832211,-1200.0,0.00015788,2]
[360161255,1746583832221,-4689.08252003,0.00015789,2]
[360161258,1746583832233,-13445.7824362,0.00015789,2]
[360161261,1746583832259,-41599.6193148,0.00015789,2]
[360161977,1746583840472,-376.1391984,0.00015789,2]
[360161991,1746583840589,-1194.37986387,0.00015789,2]
[360163608,1746584177774,172.085,0.00022,30]
[360163609,1746584198109,170.2544,0.00022,30]
[360163610,1746584201212,150.0,0.00022,30]
[360163630,1746584638659,-312.09353803,0.00015773,2]
[360163631,1746584638680,-500.0,0.00015773,2]
[360163632,1746584638701,-500.0,0.00015773,2]
[360163633,1746584638721,-505.52038418,0.00015773,2]
[360163634,1746584638742,-500.0,0.00015773,2]
[360163635,1746584638762,-509.21713214,0.00015773,2]
[360163636,1746584638784,-362.05420822,0.0001578,2]
[360163637,1746584638806,-300.0,0.00015787,2]
[360163638,1746584638828,-180.646,0.00015788,2]
[360163639,1746584638849,-1200.0,0.00015788,2]
[360163640,1746584638870,-300.0,0.00015789,2]
[360163641,1746584638894,-187.21552823,0.00015789,2]
[360163642,1746584638914,-4643.2532092,0.0001579,2]
[360163645,1746584648064,-2998.21770116,0.0001579,2]
[360163646,1746584648088,-300.0,0.00015799,2]
[360163647,1746584648112,-1000.0,0.000158,2]
[360163648,1746584648136,-115701.78229884,0.000158,2]
[360163690,1746585032329,-300.0,0.00014809,2]
[360163692,1746585032339,-192.0,0.00014809,2]
[360163694,1746585032348,-508.0,0.0001481,2]
[360163804,1746585038300,-500.0,0.00014809,2]
[360163806,1746585038310,-530.18870329,0.00014809,2]
[360163808,1746585038319,-2137.06051851,0.00014812,2]
[360164603,1746585046530,-462.57414255,0.00014812,2]
[360165049,1746586238438,-300.0,0.00013727,2]
[360165051,1746586238448,-500.0,0.00013727,2]
[360165052,1746586238458,-500.0,0.00013727,2]
[360165053,1746586238468,-274.72283565,0.00013727,2]
[360165054,1746586238477,-511.28462789,0.00013727,2]
[360165055,1746586238488,-207.95015264,0.00013727,2]
[360165056,1746586238499,-500.0,0.00013727,2]
[360165057,1746586238508,-500.0,0.00013727,2]
[360165058,1746586238517,-1545.04238382,0.0001373,2]
[360165944,1746586497944,591.01,0.00022,30]
[360166092,1746587432644,-171.78622947,0.00012281,2]
[360166094,1746587432655,-300.0,0.00013398,2]
[360166096,1746587432665,-15724.2356959,0.00013399,2]
[360166098,1746587432675,-281.559679,0.00013699,2]
[360166100,1746587432684,-400.0,0.0001395,2]
[360166102,1746587432695,-400.0,0.0001395,2]
[360166105,1746587432705,-451.88,0.0001395,2]
[360166107,1746587432715,-400.0,0.0001395,2]
[360166109,1746587432724,-427.6,0.0001395,2]
[360166111,1746587432734,-402.03556948,0.0001395,2]
[360166113,1746587432746,-400.0,0.0001395,2]
[360166115,1746587432756,-402.52225472,0.0001395,2]
[360166117,1746587432766,-400.0,0.0001395,2]
[360166119,1746587432776,-400.0,0.0001395,2]
[360166121,1746587432786,-1382.12,0.0001395,2]
[360166123,1746587432798,-400.0,0.0001395,2]
[360166125,1746587432807,-715.89,0.0001395,2]
[360166127,1746587432817,-2575.62,0.0001395,2]
[360166129,1746587432829,-400.0,0.0001395,2]
[360166131,1746587432838,-400.0,0.0001395,2]
[360166133,1746587432848,-358.40558109,0.0001395,2]
[360166532,1746587443812,-41.59441891,0.0001395,2]
[360166534,1746587443825,-778.95154309,0.0001395,2]
[360167897,1746587995199,872.45300311,0.00010305,2]
[360167903,1746588050769,-289.64336656,0.0001385,2]
[360167904,1746588050793,-188.44977036,0.000139,2]
[360167905,1746588050816,-14614.61103259,0.00013948,2]
[360167906,1746588050836,-400.0,0.00013948,2]
[360167907,1746588050856,-402.2992378,0.00013948,2]
[360167908,1746588050876,-400.0,0.00013948,2]
[360167909,1746588050896,-402.83870847,0.00013948,2]
[360167910,1746588050915,-402.55695861,0.00013948,2]
[360167911,1746588050935,-400.0,0.00013948,2]
[360167912,1746588050954,-400.0,0.00013948,2]
[360167913,1746588050974,-400.0,0.00013948,2]
[360167914,1746588050994,-400.0,0.00013948,2]
[360167915,1746588051016,-400.0,0.00013948,2]
[360167916,1746588051036,-401.69376006,0.00013948,2]
[360167917,1746588051055,-400.98042561,0.00013948,2]
[360167918,1746588051075,-400.0,0.00013948,2]
[360167919,1746588051097,-400.0,0.00013948,2]
[360167920,1746588051120,-400.0,0.00013948,2]
[360167921,1746588051140,-405.59115748,0.00013948,2]
[360167922,1746588051160,-401.20978467,0.00013948,2]
[360167923,1746588051180,-400.0,0.00013948,2]
[360167924,1746588051201,-405.05539357,0.00013948,2]
[360167925,1746588051221,-400.0,0.00013948,2]
[360167926,1746588051242,-400.0,0.00013948,2]
[360167927,1746588051263,-400.0,0.00013948,2]
[360167928,1746588051283,-400.0,0.00013948,2]
[360167929,1746588051303,-400.0,0.00013948,2]
[360167930,1746588051323,-405.97922302,0.00013948,2]
[360167931,1746588051344,-1457.47,0.00013948,2]
[360167932,1746588051363,-400.0,0.00013948,2]
[360167933,1746588051383,-400.0,0.00013948,2]
[360167934,1746588051403,-400.0,0.00013948,2]
[360167935,1746588051423,-400.0,0.00013948,2]
[360167936,1746588051445,-686.06,0.00013948,2]
[360167937,1746588051465,-899.25,0.00013948,2]
[360167938,1746588051487,-538.83,0.00013948,2]
[360167939,1746588051508,-402.36828827,0.00013948,2]
[360167940,1746588051532,-480.93,0.00013948,2]
[360167941,1746588051553,-3706.17,0.00013948,2]
[360167942,1746588051573,-400.0,0.00013948,2]
[360167943,1746588051592,-400.0,0.00013948,2]
[360167944,1746588051614,-400.0,0.00013949,2]
[360167945,1746588051636,-400.0,0.00013949,2]
[360167946,1746588051657,-404.83574071,0.00013949,2]
[360167947,1746588051678,-400.0,0.00013949,2]
[360167948,1746588051698,-460.99,0.00013949,2]
[360167949,1746588051719,-404.55147795,0.00013949,2]
[360167950,1746588051739,-400.0,0.00013949,2]
[360167951,1746588051758,-400.0,0.00013949,2]
[360167952,1746588051779,-409.28384133,0.00013949,2]
[360167953,1746588051799,-408.97621162,0.00013949,2]
[360167954,1746588051820,-400.0,0.00013949,2]
[360167955,1746588051840,-400.0,0.00013949,2]
[360167956,1746588051860,-400.0,0.00013949,2]
[360167957,1746588051881,-400.0,0.00013949,2]
[360167958,1746588051901,-400.0,0.00013949,2]
[360167959,1746588051921,-400.0,0.00013949,2]
[360167960,1746588051942,-400.0,0.00013949,2]
[360167961,1746588051964,-327.80225005,0.00013949,2]
[360167962,1746588051984,-400.0,0.00013949,2]
[360167963,1746588052004,-400.0,0.00013949,2]
[360167964,1746588052028,-400.0,0.00013949,2]
[360167965,1746588052048,-400.0,0.00013949,2]
[360167966,1746588052069,-400.0,0.00013949,2]
[360167967,1746588052089,-452.13,0.00013949,2]
[360167968,1746588052111,-400.0,0.00013949,2]
[360167969,1746588052131,-400.0,0.00013949,2]
[360167970,1746588052150,-400.0,0.00013949,2]
[360167971,1746588052170,-400.0,0.00013949,2]
[360167972,1746588052191,-400.0,0.00013949,2]
[360167973,1746588052351,-400.0,0.00013949,2]
[360167974,1746588052374,-400.0,0.00013949,2]
[360167975,1746588052395,-400.0,0.00013949,2]
[360167976,1746588052415,-400.0,0.00013949,2]
[360167977,1746588052436,-400.0,0.00013949,2]
[360167978,1746588052456,-515.0763965,0.00013949,2]
[360167979,1746588052477,-1000.0,0.00013949,2]
[360167980,1746588052497,-400.0,0.00013949,2]
[360167981,1746588052518,-400.0,0.00013949,2]
[360167982,1746588052537,-273.73123358,0.00013949,2]
[360167983,1746588052557,-707.63,0.00013949,2]
[360167984,1746588052580,-400.0,0.00013949,2]
[360167985,1746588052600,-400.0,0.00013949,2]
[360167986,1746588052620,-400.0,0.00013949,2]
[360167987,1746588052639,-400.0,0.00013949,2]
[360167988,1746588052659,-400.0,0.00013949,2]
[360167989,1746588052680,-400.0,0.00013949,2]
[360167990,1746588052700,-400.0,0.00013949,2]
[360167991,1746588052720,-400.0,0.00013949,2]
[360167992,1746588052740,-400.0,0.00013949,2]
[360167993,1746588052761,-400.0,0.00013949,2]
[360167994,1746588052781,-400.0,0.00013949,2]
[360167995,1746588052801,-400.0,0.00013949,2]
[360167996,1746588052820,-334.45770767,0.00013949,2]
[360167997,1746588052841,-400.0,0.00013949,2]
[360167998,1746588052862,-400.0,0.00013949,2]
[360167999,1746588052883,-224.32696045,0.00013949,2]
[360168000,1746588052903,-507.22556106,0.00013949,2]
[360168001,1746588052924,-400.0,0.00013949,2]
[360168002,1746588052944,-400.0,0.00013949,2]
[360168003,1746588052964,-400.0,0.00013949,2]
[360168004,1746588052985,-400.0,0.00013949,2]
[360168005,1746588053008,-1376.9,0.00013949,2]
[360168006,1746588053035,-1376.9,0.00013949,2]
[360168007,1746588053057,-1376.9,0.00013949,2]
[360168008,1746588053077,-400.0,0.00013949,2]
[360168009,1746588053099,-1376.9,0.00013949,2]
[360168010,1746588053121,-1376.9,0.00013949,2]
[360168011,1746588053143,-400.0,0.00013949,2]
[360168012,1746588053165,-1376.9,0.00013949,2]
[360168013,1746588053187,-400.0,0.00013949,2]
[360168014,1746588053208,-406.22493297,0.00013949,2]
[360168015,1746588053229,-400.0,0.00013949,2]
[360168016,1746588053251,-400.0,0.00013949,2]
[360168017,1746588053272,-400.0,0.00013949,2]
[360168018,1746588053293,-400.0,0.00013949,2]
[360168019,1746588053314,-400.0,0.00013949,2]
[360168020,1746588053335,-400.0,0.00013949,2]
[360168021,1746588053356,-400.0,0.00013949,2]
[360168022,1746588053377,-400.0,0.00013949,2]
[360168023,1746588053399,-418.13994744,0.00013949,2]
[360168024,1746588053422,-400.0,0.00013949,2]
[360168025,1746588053444,-808.89,0.00013949,2]
[360168026,1746588053466,-285.23108747,0.00013949,2]
[360168027,1746588053487,-400.0,0.00013949,2]
[360168028,1746588053509,-400.0,0.00013949,2]
[360168029,1746588053530,-407.4131592,0.00013949,2]
[360168030,1746588053553,-400.0,0.00013949,2]
[360168031,1746588053574,-400.0,0.00013949,2]
[360168032,1746588053597,-401.83896348,0.00013949,2]
[360168033,1746588053621,-506.00741057,0.00013949,2]
[360168034,1746588053643,-400.0,0.00013949,2]
[360168035,1746588053666,-8718.87,0.00013949,2]
[360168036,1746588053688,-400.0,0.00013949,2]
[360168037,1746588053710,-400.0,0.00013949,2]
[360168038,1746588053730,-400.0,0.00013949,2]
[360168039,1746588053752,-400.0,0.00013949,2]
[360168040,1746588053773,-1417.33,0.00013949,2]
[360168041,1746588053794,-400.0,0.00013949,2]
[360168042,1746588053815,-400.0,0.00013949,2]
[360168043,1746588053842,-433.05,0.00013949,2]
[360168044,1746588053862,-400.0,0.00013949,2]
[360168045,1746588053883,-188.29645696,0.00013949,2]
[360168046,1746588053903,-403.19663077,0.00013949,2]
[360168047,1746588053924,-561.55,0.00013949,2]
[360168048,1746588053944,-151.0,0.00013949,2]
[360168049,1746588053965,-207.776824,0.00013949,2]
[360168050,1746588053986,-410.7449076,0.00013949,2]
[360168051,1746588054008,-400.0,0.00013949,2]
[360168052,1746588054032,-403.33443963,0.00013949,2]
[360168053,1746588054054,-2468.3,0.00013949,2]
[360168054,1746588054075,-400.0,0.00013949,2]
[360168055,1746588054101,-1485.71,0.00013949,2]
[360168056,1746588054123,-419.47032614,0.00013949,2]
[360168057,1746588054144,-640.63,0.00013949,2]
[360168058,1746588054165,-400.0,0.00013949,2]
[360168059,1746588054187,-400.0,0.00013949,2]
[360168060,1746588054208,-410.65,0.00013949,2]
[360168061,1746588054229,-2478.32,0.00013949,2]
[360168062,1746588054250,-404.85723274,0.00013949,2]
[360168063,1746588054272,-400.0,0.00013949,2]
[360168064,1746588054293,-400.0,0.00013949,2]
[360168065,1746588054314,-400.0,0.00013949,2]
[360168066,1746588054334,-400.0,0.00013949,2]
[360168067,1746588054355,-400.0,0.00013949,2]
[360168068,1746588054376,-525.48,0.00013949,2]
[360168069,1746588054398,-3515.03,0.00013949,2]
[360168070,1746588054418,-590.18,0.00013949,2]
[360168071,1746588054439,-400.0,0.00013949,2]
[360168072,1746588054460,-400.0,0.00013949,2]
[360168073,1746588054480,-436.28701072,0.00013949,2]
[360168074,1746588054501,-400.0,0.00013949,2]
[360168075,1746588054522,-400.0,0.00013949,2]
[360168076,1746588054545,-400.0,0.00013949,2]
[360168077,1746588054567,-782.19,0.00013949,2]
[360168078,1746588054591,-2688.72,0.00013949,2]
[360168079,1746588054617,-416.18728255,0.00013949,2]
[360168080,1746588054639,-521.01189241,0.00013949,2]
[360168081,1746588054665,-464.01,0.00013949,2]
[360168082,1746588054685,-406.33642134,0.00013949,2]
[360168083,1746588054830,-400.0,0.00013949,2]
[360168084,1746588054854,-400.0,0.00013949,2]
[360168085,1746588054874,-397.99258451,0.00013949,2]
[360168086,1746588054896,-400.0,0.00013949,2]
[360168087,1746588054919,-400.0,0.00013949,2]
[360168088,1746588054940,-400.0,0.00013949,2]
[360168089,1746588054960,-403.72505905,0.00013949,2]
[360168090,1746588054980,-407.42396825,0.00013949,2]
[360168091,1746588055002,-400.0,0.00013949,2]
[360168092,1746588055026,-151.0,0.00013949,2]
[360168093,1746588055048,-151.0,0.00013949,2]
[360168094,1746588055068,-400.0,0.00013949,2]
[360168095,1746588055087,-151.0,0.00013949,2]
[360168096,1746588055107,-155.638302,0.00013949,2]
[360168097,1746588055127,-400.0,0.00013949,2]
[360168098,1746588055147,-400.0,0.00013949,2]
[360168099,1746588055166,-151.30061,0.00013949,2]
[360168100,1746588055186,-400.0,0.00013949,2]
[360168101,1746588055208,-2457.2,0.00013949,2]
[360168102,1746588055229,-208.06386811,0.00013949,2]
[360168103,1746588055249,-511.07839852,0.00013949,2]
[360168104,1746588055271,-509.02,0.00013949,2]
[360168105,1746588055291,-400.0,0.00013949,2]
[360168106,1746588055311,-428.16,0.00013949,2]
[360168107,1746588055333,-400.0,0.00013949,2]
[360168108,1746588055354,-400.0,0.00013949,2]
[360168109,1746588055376,-400.0,0.00013949,2]
[360168110,1746588055397,-400.0,0.00013949,2]
[360168111,1746588055418,-1354.21,0.00013949,2]
[360168112,1746588055441,-5722.48,0.00013949,2]
[360168113,1746588055463,-400.0,0.00013949,2]
[360168114,1746588055484,-1733.12,0.00013949,2]
[360168115,1746588055509,-689.02,0.00013949,2]
[360168116,1746588055530,-1644.69,0.00013949,2]
[360168117,1746588055552,-400.0,0.00013949,2]
[360168118,1746588055573,-1764.2,0.00013949,2]
[360168119,1746588055594,-452.04,0.00013949,2]
[360168120,1746588055616,-455.71,0.00013949,2]
[360168121,1746588055636,-406.76065426,0.00013949,2]
[360168122,1746588055658,-400.0,0.00013949,2]
[360168123,1746588055679,-400.0,0.00013949,2]
[360168124,1746588055702,-404.25313771,0.00013949,2]
[360168125,1746588055723,-2111.95,0.00013949,2]
[360168126,1746588055744,-664.93,0.00013949,2]
[360168127,1746588055769,-400.0,0.00013949,2]
[360168128,1746588055789,-405.58664551,0.00013949,2]
[360168129,1746588055809,-413.8125936,0.00013949,2]
[360168130,1746588055830,-4032.07,0.00013949,2]